bitfinex-derivatives/quotes_ETHF0:USTF0_20250831
["timestamp","ask_amount","ask_price","bid_price","bid_amount"]
[1756641758829,0.4767,4471.9,4471.5,0.2845]
[1756641759026,0.4767,4471.9,4471.0,3.4348]
[1756641759226,0.2998,4471.8,4471.1,0.2845]
[1756641759433,0.4841,4471.8,4471.7,0.1917]
[1756641759931,0.1843,4471.8,4471.7,0.4762]
[1756641760431,0.1843,4471.8,4471.4,0.2845]
[1756641760432,0.4841,4471.8,4471.4,0.2845]
[1756641760631,0.4841,4471.8,4471.3,0.227]
[1756641760934,0.4841,4471.8,4471.7,0.4762]
[1756641761834,0.1843,4471.8,4471.1,0.2845]
[1756641762028,0.1843,4470.6,4470.5,0.1917]
[1756641762228,0.4841,4470.6,4470.5,0.1917]
[1756641762532,0.4841,4470.6,4469.9,3.2078]
[1756641762533,0.1843,4471.1,4471.0,0.1917]
[1756641762733,0.4841,4471.1,4471.0,0.4762]
[1756641763635,0.1843,4471.1,4470.0,0.2845]
[1756641763831,0.227,4471.2,4470.0,0.2845]
[1756641764028,0.2998,4471.1,4470.0,0.2845]
[1756641764634,0.4841,4471.1,4471.0,0.4762]
[1756641765028,0.2998,4471.0,4470.1,0.2845]
[1756641765236,0.4841,4470.2,4470.1,0.4762]
[1756641765526,0.2998,4470.7,4470.2,0.2845]
[1756641765724,0.4841,4470.7,4470.6,0.4762]
[1756641766932,0.4841,4470.7,4469.9,3.61043]
[1756641766933,0.4841,4470.7,4469.9,3.2078]
[1756641767235,0.4841,4470.0,4469.9,3.684]
[1756641768132,0.4841,4470.0,4469.9,3.3995]
[1756641768427,0.4841,4470.0,4469.9,0.4762]
[1756641773930,0.1843,4470.0,4469.4,0.2845]
[1756641774137,0.4841,4469.4,4469.3,3.3995]
[1756641774534,0.4841,4469.4,4469.3,3.684]
[1756641778141,0.1843,4469.4,4469.3,3.684]
[1756641778435,0.1118,4469.9,4469.3,3.684]
[1756641778739,0.1118,4469.9,4469.8,0.4762]
[1756641779342,0.2961,4469.9,4469.8,0.4762]
[1756641779540,0.1118,4469.9,4469.8,0.4762]
[1756641780044,0.5959,4469.9,4469.8,0.4762]
[1756641780835,0.5959,4469.9,4469.8,0.1917]
[1756641781035,0.5959,4469.9,4469.8,0.4762]
[1756641781334,0.1843,4469.5,4469.3,3.4348]
[1756641781538,0.4841,4469.4,4469.3,3.911]
[1756641782143,0.1118,4469.9,4469.8,0.4762]
[1756641782437,0.5959,4469.9,4469.3,3.4348]
[1756641782642,0.4841,4469.4,4469.3,3.684]
[1756641783142,0.4841,4469.4,4469.3,0.4762]
[1756641783733,0.1843,4469.4,4469.3,0.4762]
[1756641784139,0.2998,4469.7,4469.3,0.4762]
[1756641784340,3.2078,4469.8,4469.7,0.1917]
[1756641784640,0.1118,4469.9,4469.8,0.4762]
[1756641785439,0.1118,4469.9,4469.8,0.7042]
[1756641788145,0.1118,4469.9,4469.8,3.912]
[1756641789135,3.2078,4470.8,4469.8,3.912]
[1756641789341,3.2078,4470.8,4469.9,0.2809]
[1756641789539,3.6901,4470.8,4470.7,0.4677]
[1756641793045,3.2078,4470.8,4470.7,0.4677]
[1756641793447,0.1118,4471.0,4470.7,0.1868]
[1756641793744,0.1118,4471.0,4470.9,0.4677]
[1756641795751,0.1118,4471.0,4470.9,4.07804]
[1756641796953,0.1118,4471.0,4470.9,4.30504]
[1756641800757,0.1118,4471.0,4470.9,4.48672009]
[1756641801554,0.1118,4471.0,4470.9,4.30504]
[1756641802857,0.1118,4471.0,4470.9,4.47945432]
[1756641811367,0.4823,4471.6,4471.5,0.1868]
[1756641811667,0.4823,4471.6,4471.5,0.6947]
[1756641815267,0.1118,4471.8,4471.6,0.40248]
[1756641815466,0.5941,4471.8,4471.7,0.4677]
[1756641820772,0.2917,4472.2,4471.7,0.4677]
[1756641820974,3.2078,4473.0,4472.0,0.69424]
[1756641821274,0.4905,4472.2,4472.1,0.7057]
[1756641822973,0.2917,4472.9,4472.2,0.2918]
[1756641823567,3.2078,4473.0,4472.5,0.88109]
[1756641823568,0.4905,4472.6,4472.5,0.88109]
[1756641823864,0.4905,4472.6,4472.5,1.10809]
[1756641824467,3.2078,4473.0,4472.5,1.10809]
[1756641824468,0.2917,4472.9,4472.8,0.4787]
[1756641824672,0.4905,4472.9,4472.8,0.7057]
[1756641825670,0.1988,4472.5,4472.2,3.2078]
[1756641825875,0.1988,4472.2,4471.8,0.227]
[1756641826069,0.1988,4471.9,4471.8,0.227]
[1756641826370,0.4905,4471.9,4471.7,35.4128]
[1756641826570,0.2917,4471.8,4471.7,35.6398]
[1756641826770,0.4905,4471.8,4471.7,3.4348]
[1756641828774,0.4905,4471.8,4471.7,0.227]
[1756641830073,0.1988,4471.1,4471.0,1.98274851]
[1756641830276,0.4905,4471.0,4470.9,0.227]
[1756641831176,0.4905,4470.7,4470.6,3.6865]
[1756641831379,0.4905,4470.7,4470.6,3.9135]
[1756641833382,0.2917,4471.0,4470.7,0.2918]
[1756641833583,0.2917,4471.0,4470.9,0.1869]
[1756641833774,0.2917,4471.7,4470.9,0.4139]
[1756641834083,0.2917,4471.7,4471.0,0.2918]
[1756641835982,0.4905,4471.1,4471.0,0.4787]
[1756641838085,0.1988,4471.1,4471.0,0.4787]
[1756641838480,0.4905,4471.1,4471.0,0.4787]
[1756641839180,0.2917,4471.4,4471.0,0.1869]
[1756641839484,0.2917,4471.4,4471.3,0.4787]
[1756641839680,0.2917,4471.4,4471.3,0.7057]
[1756641839882,3.2078,4472.3,4471.4,0.2918]
[1756641840084,0.1988,4471.5,4471.4,0.4787]
[1756641840387,0.4905,4471.5,4471.4,0.4787]
[1756641840586,0.22362,4472.2,4471.4,0.4787]
[1756641840587,0.4905,4472.2,4472.1,0.1869]
[1756641840782,0.4905,4472.2,4472.1,0.4787]
[1756641840987,0.4905,4472.2,4471.7,0.227]
[1756641841185,0.2917,4471.7,4471.6,0.227]
[1756641841391,0.4905,4471.7,4471.6,0.7057]
[1756641842890,3.2078,4472.3,4471.6,0.7057]
[1756641843087,0.4905,4472.2,4472.1,0.1869]
[1756641843286,0.4905,4472.2,4472.1,0.4787]
[1756641844991,0.1988,4472.2,4472.1,0.7057]
[1756641845188,3.2078,4472.8,4472.1,0.7057]
[1756641845189,0.2917,4472.7,4472.2,0.2918]
[1756641845394,0.4905,4472.7,4472.6,0.1869]
[1756641845592,0.4905,4472.7,4472.6,0.7057]
[1756641846385,0.1988,4472.7,4472.6,0.7057]
[1756641846789,0.4905,4472.7,4472.6,0.7057]
[1756641851894,0.4905,4472.7,4472.6,0.4139]
[1756641852104,4.71408,4472.7,4472.0,0.227]
[1756641852297,0.472,4472.1,4471.3,5.19054851]
[1756641852598,0.472,4471.5,4471.4,0.227]
[1756641852996,0.273,4472.0,4471.4,0.7036]
[1756641853188,0.472,4472.2,4472.1,0.1998]
[1756641853393,0.472,4472.2,4472.1,0.4766]
[1756641856401,0.472,4472.2,4472.1,0.1998]
[1756641856698,0.472,4472.2,4472.1,0.4766]
[1756641860502,0.472,4472.2,4471.9,0.227]
[1756641860706,0.472,4472.2,4471.7,0.227]
[1756641861004,0.472,4471.4,4471.3,3.4348]
[1756641862204,0.472,4471.4,4471.3,3.9114]
[1756641863402,0.199,4471.4,4471.3,3.9114]
[1756641863608,0.273,4472.3,4471.4,0.2768]
[1756641864104,0.22362,4472.2,4471.4,0.2768]
[1756641864300,0.49662,4472.3,4471.4,0.2768]
[1756641864702,0.273,4472.3,4471.4,0.2768]
[1756641866011,0.472,4472.3,4472.2,0.4766]
[1756641868210,0.472,4472.3,4472.2,0.1998]
[1756641872409,0.472,4472.3,4471.9,0.2768]
[1756641873008,0.472,4472.3,4472.2,0.1998]
[1756641873313,0.472,4472.3,4472.2,0.4766]
[1756641875013,3.2078,4472.4,4472.2,0.4766]
[1756641875215,3.6798,4472.4,4472.3,0.4766]
[1756641876015,3.6798,4472.4,4472.3,0.1998]
[1756641878921,3.6798,4472.4,4472.3,0.4962]
[1756641879712,3.86368477,4472.4,4472.3,0.4962]
[1756641880522,3.6798,4472.4,4472.3,0.4962]
[1756641880722,3.86372712,4472.4,4472.3,0.4962]
[1756641883128,0.65592712,4472.4,4472.3,0.4962]
[1756641884320,0.18392712,4472.4,4472.3,0.4962]
[1756641885523,0.18392712,4472.4,4472.3,4.4962]
[1756641886537,0.4849,4473.7,4473.6,0.1927]
[1756641886834,0.66871651,4473.7,4473.6,0.4891]
[1756641887327,0.66871651,4473.7,4473.3,0.2964]
[1756641887523,3.2078,4473.8,4473.3,0.4891]
[1756641887524,0.4849,4473.4,4473.3,0.4891]
[1756641887729,0.66871651,4473.4,4473.3,0.4891]
[1756641890534,0.66838753,4473.4,4473.3,0.4891]
[1756641890927,0.4849,4473.4,4473.3,0.4891]
[1756641891133,0.66838484,4473.4,4473.3,0.4891]
[1756641901041,0.66822887,4473.4,4473.3,0.4891]
[1756641906043,0.66822887,4473.4,4473.3,0.66373107]
[1756641907448,0.18332887,4473.4,4473.3,0.66373107]
[1756641907648,0.1824,4474.1,4474.0,0.40226]
[1756641907944,0.1824,4474.1,4474.0,0.82236]
[1756641908151,0.479,4474.3,4474.2,0.59534]
[1756641908452,0.479,4474.3,4474.2,0.4746]
[1756641909146,0.1824,4473.8,4473.6,3.2078]
[1756641909343,0.479,4473.7,4473.4,0.2815]
[1756641909540,0.479,4473.7,4473.5,0.227]
[1756641910042,3.2078,4474.5,4473.6,0.4746]
[1756641910248,3.2078,4474.5,4473.6,0.1931]
[1756641910446,0.22351001,4474.4,4473.7,0.2815]
[1756641910647,0.479,4473.9,4473.8,0.7016]
[1756641911742,0.479,4473.9,4473.8,0.227]
[1756641913543,0.479,4473.9,4473.8,0.7016]
[1756641916744,0.479,4473.9,4473.8,0.4201]
[1756641917048,0.479,4473.9,4473.8,0.227]
[1756641918056,0.479,4473.9,4473.8,0.7016]
[1756641925458,3.3902,4474.5,4474.4,0.1931]
[1756641925657,3.3902,4474.5,4474.4,0.4746]
[1756641926056,3.6868,4474.5,4474.4,0.4746]
[1756641926361,0.1824,4474.1,4474.0,0.4746]
[1756641926557,0.479,4474.1,4474.0,0.4746]
[1756641926963,3.3902,4474.5,4474.4,0.1931]
[1756641927358,3.3902,4474.5,4474.4,0.4746]
[1756641927558,3.6868,4474.5,4474.4,0.4746]
[1756641928555,0.479,4474.5,4474.4,0.4746]
[1756641931762,3.2078,4475.1,4474.4,0.1931]
[1756641931962,0.479,4474.6,4473.9,1.99309158]
[1756641932155,0.1824,4474.0,4473.9,2.18619158]
[1756641932356,0.479,4474.0,4473.9,0.1931]
[1756641932759,0.479,4474.0,4473.9,0.4746]
[1756641933060,0.479,4474.0,4473.9,2.46769158]
[1756641933265,0.479,4474.0,4473.9,0.4746]
[1756641933566,0.479,4474.0,4473.9,2.46769158]
[1756641934268,0.479,4474.0,4473.9,0.4746]
[1756641939669,0.1864,4474.6,4473.9,0.2868]
[1756641939865,0.1864,4474.7,4474.6,0.485]
[1756641940173,0.1864,4474.7,4474.6,0.712]
[1756641940374,0.4699,4474.7,4474.6,0.712]
[1756641940973,3.2078,4475.1,4474.6,1.1142]
[1756641941176,0.2835,4475.0,4474.9,0.1982]
[1756641941375,0.2835,4475.0,4474.9,0.485]
[1756641942770,0.4699,4475.0,4474.9,0.485]
[1756641949888,3.2078,4475.1,4475.0,0.2868]
[1756641950182,0.1864,4475.3,4475.2,0.1982]
[1756641950388,0.4699,4475.3,4475.2,0.485]
[1756641952087,0.1864,4475.3,4475.2,0.485]
[1756641952488,0.2835,4475.5,4475.2,0.88715]
[1756641952689,0.1864,4475.4,4475.1,0.5138]
[1756641952990,0.4699,4474.7,4474.6,1.99309158]
[1756641953592,0.4699,4474.7,4474.4,0.227]
[1756641956788,3.2078,4474.9,4474.6,0.485]
[1756641956989,0.4699,4474.7,4474.6,3.80821]
[1756641957189,0.4699,4474.7,4474.6,3.406]
[1756641957492,0.4699,4474.7,4474.6,3.6928]
[1756641958895,3.2078,4475.6,4474.6,4.095]
[1756641959202,0.2835,4475.4,4474.7,0.2868]
[1756641959388,0.2835,4475.4,4474.8,0.227]
[1756641959698,0.4699,4475.0,4474.9,0.485]
[1756641962794,0.4699,4475.0,4474.9,0.1982]
[1756641963199,0.4699,4475.0,4474.8,0.227]
[1756641964200,0.1864,4475.0,4474.9,0.485]
[1756641964699,0.4699,4475.0,4474.9,0.485]
[1756641966001,0.4699,4475.0,4474.9,0.1982]
[1756641966396,0.4699,4475.0,4474.9,0.485]
[1756641973407,0.1864,4475.0,4474.4,2.29199158]
[1756641973710,3.2078,4475.1,4474.1,3.2078]
[1756641973711,0.4846,4474.4,4474.3,0.5005]
[1756641973901,0.4846,4474.4,4474.3,0.7265]
[1756641974102,3.2078,4475.1,4474.3,0.7265]
[1756641974310,0.22348,4475.0,4474.4,0.2989]
[1756641974602,0.3001,4474.9,4474.8,0.5005]
[1756641975008,0.3001,4475.5,4474.9,0.2989]
[1756641975198,0.52356,4475.5,4474.9,0.2989]
[1756641975398,0.3001,4475.5,4474.9,0.2989]
[1756641977112,0.4846,4475.0,4474.9,0.5005]
[1756641978007,3.2078,4475.6,4474.9,0.5005]
[1756641978211,0.4846,4475.5,4475.4,0.2016]
[1756641978413,0.4846,4475.5,4475.4,0.5005]
[1756641982114,0.1845,4475.5,4475.0,0.2989]
[1756641982316,0.4846,4475.1,4475.0,0.5005]
[1756641984820,3.4338,4476.1,4475.0,0.5005]
[1756641984821,3.2078,4476.1,4475.0,0.5005]
[1756641985120,0.3001,4475.9,4475.2,0.2989]
[1756641985517,0.3001,4475.9,4475.2,3.5067]
[1756641985718,0.226,4476.5,4475.2,3.2078]
[1756641985917,1.06994526,4476.4,4475.3,0.2989]
[1756641986122,0.74952,4476.6,4475.6,0.2989]
[1756641986621,0.3001,4476.4,4475.6,0.2989]
[1756641987821,0.4846,4476.4,4476.3,0.2016]
[1756641988620,0.4846,4476.4,4476.3,0.5005]
[1756641998230,0.226,4477.2,4476.4,0.2879]
[1756641998528,0.2985,4477.1,4476.4,0.2879]
[1756642000333,0.4813,4477.1,4477.0,0.4829]
[1756642001332,4.70466,4477.1,4476.3,0.2879]
[1756642001641,0.4813,4476.0,4475.9,0.4829]
[1756642004034,0.1828,4475.8,4475.7,3.2078]
[1756642004236,0.1828,4475.3,4475.2,3.4028]
[1756642004442,0.4813,4475.3,4475.2,3.6907]
[1756642008344,0.4813,4475.3,4475.2,0.4829]
[1756642010837,0.2985,4475.2,4475.1,0.195]
[1756642011034,0.4813,4475.2,4475.1,0.4829]
[1756642022356,0.4813,4475.2,4474.9,0.2879]
[1756642022550,0.1828,4474.9,4474.8,0.226]
[1756642022856,0.4813,4474.9,4474.8,0.226]
[1756642023550,0.4813,4474.8,4474.7,0.7089]
[1756642025551,0.4813,4474.8,4474.7,0.226]
[1756642027051,0.4813,4474.8,4474.2,3.7217]
[1756642027253,0.1828,4474.3,4474.2,3.6288]
[1756642027448,0.4813,4474.3,4474.2,3.6907]
[1756642027648,0.4813,4474.3,4474.2,3.2078]
[1756642028052,0.1828,4474.3,4473.5,3.2078]
[1756642028253,0.2001,4473.6,4473.5,3.3956]
[1756642028449,0.4801,4473.6,4473.5,3.6848]
[1756642028956,0.4801,4473.6,4473.5,0.477]
[1756642029758,0.4801,4473.6,4473.1,0.226]
[1756642029759,0.4801,4473.6,4472.9,3.4338]
[1756642029956,0.4801,4473.0,4472.9,3.9108]
[1756642030162,0.4801,4473.0,4472.9,3.4338]
[1756642030362,0.4801,4473.0,4472.9,3.723]
[1756642030562,0.4801,4473.0,4472.9,3.4338]
[1756642031059,0.4801,4473.0,4472.9,3.2078]
[1756642031856,0.2001,4473.0,4472.4,3.2078]
[1756642032062,0.4801,4472.5,4472.4,3.6848]
[1756642035664,0.4801,4472.5,4472.4,3.3956]
[1756642035860,0.4801,4472.5,4472.4,3.2078]
[1756642036352,0.4801,4472.5,4472.4,3.497]
[1756642037961,0.4801,4471.9,4471.8,0.477]
[1756642038155,0.4801,4471.9,4471.8,0.703]
[1756642039353,0.4801,4471.3,4471.2,0.477]
[1756642040861,0.28,4471.2,4470.6,0.5152]
[1756642041066,0.4801,4470.8,4470.7,0.477]
[1756642042861,0.4801,4470.7,4470.6,0.477]
[1756642043760,3.2078,4471.4,4470.6,0.1878]
[1756642043966,0.4261,4471.3,4470.6,0.2892]
[1756642044163,0.4801,4470.7,4470.6,0.477]
[1756642044364,0.4801,4470.6,4470.5,3.6848]
[1756642044965,0.28,4470.9,4470.5,3.6848]
[1756642045160,0.4801,4471.0,4470.9,0.477]
[1756642047965,0.4801,4471.0,4470.9,0.1878]
[1756642048168,0.4801,4471.0,4470.2,0.2892]
[1756642048363,0.4801,4470.7,4470.6,0.1878]
[1756642048569,0.4801,4470.7,4470.6,0.477]
[1756642049074,0.4801,4470.7,4470.2,0.2892]
[1756642049977,0.4801,4470.7,4470.6,0.477]
[1756642051179,3.2078,4470.8,4470.6,0.1878]
[1756642051378,3.2078,4470.8,4470.7,0.477]
[1756642051679,3.6879,4470.8,4470.7,0.477]
[1756642051971,3.4079,4470.8,4470.7,0.477]
[1756642052177,3.2078,4470.8,4470.7,0.477]
[1756642054077,3.4878,4470.8,4470.7,0.477]
[1756642055685,3.6879,4470.8,4470.7,0.477]
[1756642059287,0.1118,4471.0,4470.7,0.477]
[1756642059288,0.1118,4471.0,4470.7,4.41148]
[1756642059483,0.1118,4471.0,4470.9,0.1909]
[1756642059688,0.1118,4471.0,4470.9,0.4736]
[1756642070304,0.1844,4471.0,4470.9,0.4736]
[1756642070504,0.4803,4471.0,4470.9,0.4736]
[1756642074009,0.1118,4471.2,4471.0,0.40253]
[1756642074208,0.2962,4471.2,4471.1,0.6996]
[1756642074711,0.5921,4471.2,4471.1,0.6996]
[1756642075906,0.1118,4471.2,4471.1,0.6996]
[1756642076105,0.5921,4471.2,4471.1,0.6996]
[1756642076512,0.1118,4471.2,4471.1,0.6996]
[1756642078907,0.1118,4471.2,4471.1,2.69269158]
[1756642080414,0.1118,4471.2,4471.1,0.6996]
[1756642085619,0.2959,4471.8,4471.1,1.51501]
[1756642085918,0.4803,4471.8,4471.7,0.4736]
[1756642086119,0.4803,4471.8,4471.7,0.6996]
[1756642086720,0.4803,4471.8,4471.7,1.10207]
[1756642092823,0.1118,4472.0,4471.9,0.59785]
[1756642093121,0.1118,4472.0,4471.9,1.09785]
[1756642093422,0.1118,4472.0,4471.9,3.0942389]
[1756642093819,0.1118,4472.0,4471.9,1.09785]
[1756642095525,0.273,4472.8,4472.7,0.87178]
[1756642095719,0.273,4472.8,4472.7,1.09778]
[1756642097021,0.273,4473.5,4472.9,0.40235]
[1756642097223,0.457,4473.0,4472.9,0.59775]
[1756642097421,0.457,4473.0,4472.9,0.82375]
[1756642097620,0.457,4473.0,4472.9,1.09775]
[1756642097821,0.184,4473.0,4472.9,1.09775]
[1756642098626,0.457,4473.0,4472.9,1.09775]
[1756642098932,0.457,4473.0,4472.9,0.6954]
[1756642100121,0.273,4473.5,4473.1,0.274]
[1756642100326,0.184,4473.2,4473.1,0.4694]
[1756642100526,0.457,4473.2,4473.1,0.6954]
[1756642106025,0.273,4473.5,4473.4,0.59771]
[1756642106331,0.273,4474.0,4473.9,0.1954]
[1756642106533,0.457,4474.0,4473.9,0.6954]
[1756642111237,0.184,4474.0,4473.9,0.6954]
[1756642111538,0.273,4474.7,4474.0,0.274]
[1756642111732,0.184,4474.1,4474.0,0.4694]
[1756642111928,0.457,4474.1,4474.0,0.4694]
[1756642116934,3.2078,4474.8,4474.0,0.4694]
[1756642117138,0.457,4474.6,4474.5,0.1954]
[1756642117348,0.457,4474.6,4474.5,0.4694]
[1756642117748,0.457,4474.6,4474.5,0.1954]
[1756642117951,0.457,4474.6,4474.3,0.3002]
[1756642118255,0.457,4474.6,4474.0,0.3002]
[1756642119148,0.457,4474.6,4474.5,0.1978]
[1756642119449,0.457,4474.6,4474.5,0.498]
[1756642119954,0.1995,4475.2,4475.1,0.1978]
[1756642120149,0.4811,4475.2,4475.1,0.498]
[1756642125465,0.4811,4475.1,4475.0,0.226]
[1756642125958,0.4811,4475.1,4475.0,0.5262]
[1756642126262,0.4811,4475.1,4475.0,0.724]
[1756642136466,0.1995,4475.1,4475.0,0.724]
[1756642136667,0.4811,4475.4,4475.3,0.498]
[1756642136868,3.4073,4475.8,4475.7,0.1978]
[1756642137068,3.6889,4475.8,4475.7,0.498]
[1756642138078,0.4811,4475.8,4475.7,0.498]
[1756642139578,0.1995,4476.3,4476.2,0.1978]
[1756642139776,0.4811,4476.3,4476.2,0.1978]
[1756642139977,0.4811,4476.3,4476.2,0.498]
[1756642140479,0.4811,4476.3,4475.8,0.4021]
[1756642140672,0.1995,4476.0,4475.6,0.3002]
[1756642140877,0.4811,4475.6,4475.5,1.12612]
[1756642145086,0.4811,4476.0,4475.9,0.90009]
[1756642145275,0.4811,4476.0,4475.9,1.12609]
[1756642145983,3.2078,4476.4,4476.1,0.40207]
[1756642146180,0.1995,4476.2,4476.1,0.40207]
[1756642146487,0.2816,4476.4,4476.3,0.1978]
[1756642146680,0.4811,4476.8,4476.7,0.498]
[1756642146878,0.4811,4476.8,4476.7,0.724]
[1756642147883,0.1995,4476.8,4476.7,0.724]
[1756642148082,0.1897,4476.9,4476.8,0.59361]
[1756642148384,0.4775,4476.9,4476.8,0.1916]
[1756642148780,0.4775,4476.9,4476.8,0.4868]
[1756642150284,0.4775,4477.4,4477.3,0.1916]
[1756642150484,0.4775,4477.4,4477.3,0.4868]
[1756642154681,0.4775,4477.4,4476.5,3.2078]
[1756642154888,0.4775,4476.7,4476.6,0.226]
[1756642156191,0.4775,4476.7,4476.5,3.2078]
[1756642156490,3.2078,4477.5,4476.5,3.2078]
[1756642156491,0.4775,4476.6,4476.5,3.2078]
[1756642156693,0.4775,4476.6,4476.5,3.4338]
[1756642157388,3.2078,4476.9,4475.9,3.2078]
[1756642157588,0.1897,4476.0,4475.4,3.503]
[1756642157788,0.4775,4475.5,4475.4,3.2078]
[1756642159793,0.1897,4475.5,4475.1,0.5212]
[1756642160092,0.4775,4475.2,4475.1,0.7128]
[1756642160894,0.4775,4475.2,4475.1,0.226]
[1756642162994,0.4775,4475.2,4475.1,0.7128]
[1756642163592,0.4775,4475.2,4475.1,0.226]
[1756642165386,0.4775,4475.2,4475.1,0.7128]
[1756642165590,0.4775,4475.2,4475.1,0.226]
[1756642170200,0.4775,4475.2,4475.1,0.5212]
[1756642171594,0.4775,4475.2,4475.1,0.7128]
[1756642175712,0.4775,4475.2,4475.1,0.226]
[1756642177511,0.4775,4475.2,4475.1,0.7128]
[1756642179313,0.2846,4476.2,4475.8,0.2839]
[1756642179519,0.4703,4476.2,4476.1,0.4714]
[1756642180714,0.2846,4476.7,4476.3,0.2839]
[1756642181014,0.2846,4476.7,4475.7,3.83591]
[1756642181015,0.4703,4476.7,4476.6,0.4714]
[1756642181620,0.4703,4477.0,4476.9,0.1875]
[1756642181814,0.4703,4477.0,4476.9,0.4714]
[1756642184816,3.2078,4477.1,4477.0,0.4714]
[1756642185120,3.6781,4477.1,4477.0,0.4714]
[1756642185717,3.3935,4477.1,4477.0,0.4714]
[1756642186923,3.6781,4477.1,4477.0,0.4714]
[1756642188620,0.4703,4477.1,4477.0,0.4714]
[1756642196013,0.2846,4477.6,4477.0,0.1875]
[1756642196220,0.4703,4477.6,4477.5,0.4714]
[1756642201424,0.4703,4477.6,4477.0,0.2839]
[1756642202127,0.4703,4477.6,4477.5,0.1875]
[1756642202429,0.4703,4477.6,4477.5,0.4714]
[1756642204129,0.2846,4478.1,4477.6,0.2839]
[1756642204426,0.17970482,4479.9,4478.0,0.4714]
[1756642204629,0.2846,4478.9,4478.2,0.2839]
[1756642204830,0.1857,4478.3,4478.2,0.4714]
[1756642205025,0.4703,4478.3,4478.2,0.4714]
[1756642206026,0.2846,4478.3,4478.2,0.4714]
[1756642206237,0.2846,4478.9,4478.3,0.2839]
[1756642206530,0.4703,4478.9,4478.8,0.4714]
[1756642206731,0.4703,4478.9,4478.8,0.1875]
[1756642206935,0.4703,4478.9,4478.2,0.2839]
[1756642209331,0.4703,4478.9,4478.8,0.4827]
[1756642211337,0.4703,4478.9,4478.2,0.2952]
[1756642211538,0.4918,4478.2,4478.1,0.226]
[1756642213436,0.1955,4477.8,4477.7,3.2078]
[1756642213744,0.4918,4477.8,4477.7,3.697]
[1756642215542,3.2078,4478.5,4477.7,3.697]
[1756642215543,3.2078,4478.5,4477.7,3.4018]
[1756642215737,0.2963,4478.4,4477.8,0.2952]
[1756642216344,0.4918,4477.9,4477.8,0.4892]
[1756642217042,0.2963,4478.4,4477.9,0.2952]
[1756642217247,0.4918,4478.4,4478.3,0.4892]
[1756642217549,3.2078,4478.5,4478.3,0.194]
[1756642217843,3.2078,4478.5,4477.7,3.2078]
[1756642217844,3.4033,4478.5,4477.7,3.2078]
[1756642218043,3.4033,4478.5,4477.0,2.82525919]
[1756642218044,0.4918,4477.6,4477.2,3.2078]
[1756642218244,0.4918,4477.3,4477.2,3.2078]
[1756642218641,0.4918,4477.3,4477.2,3.4018]
[1756642218949,0.4918,4477.3,4477.2,3.697]
[1756642220143,0.4918,4477.3,4477.2,0.226]
[1756642220349,0.4918,4477.3,4477.2,0.42]
[1756642220751,0.4918,4477.3,4477.2,0.7152]
[1756642221546,0.2963,4477.6,4477.2,0.7152]
[1756642221743,3.2078,4477.9,4477.3,0.2952]
[1756642221948,3.6996,4477.9,4477.3,0.2952]
[1756642222451,3.6996,4477.9,4477.8,0.194]
[1756642223946,3.6996,4477.9,4477.6,0.2952]
[1756642224145,3.2078,4477.9,4477.2,0.5212]
[1756642224354,0.1955,4477.4,4477.3,0.4892]
[1756642225153,0.2963,4477.9,4477.3,0.194]
[1756642225354,0.4918,4477.9,4477.8,0.4892]
[1756642227544,0.2963,4478.3,4478.2,0.194]
[1756642227746,0.4918,4478.3,4477.7,0.226]
[1756642227947,0.4918,4477.8,4477.7,0.2952]
[1756642228353,0.4918,4477.8,4477.6,0.226]
[1756642229457,0.4918,4477.7,4477.6,0.7152]
[1756642231759,0.2963,4477.6,4477.4,3.2078]
[1756642231954,0.1955,4477.2,4477.1,0.226]
[1756642232155,0.4918,4477.2,4477.1,0.226]
[1756642234951,3.2078,4477.4,4476.5,0.2952]
[1756642234952,0.2963,4477.1,4476.5,0.2952]
[1756642235156,0.4918,4476.6,4476.5,0.4892]
[1756642235456,0.4918,4476.6,4476.5,0.7152]
[1756642236357,0.1955,4476.6,4476.5,0.7152]
[1756642237062,0.2963,4476.9,4476.6,0.2952]
[1756642237263,0.1955,4476.7,4476.6,0.4892]
[1756642237464,0.4918,4476.7,4476.6,0.4892]
[1756642237962,3.2078,4477.4,4476.6,0.194]
[1756642238163,0.1882,4476.8,4476.7,0.47]
[1756642238560,0.4672,4476.8,4476.7,0.47]
[1756642243156,0.4672,4476.8,4476.5,0.226]
[1756642243464,3.675,4476.8,4476.1,0.226]
[1756642248972,3.675,4476.8,4476.2,0.2859]
[1756642252570,3.675,4476.8,4476.1,0.5119]
[1756642252766,3.2078,4476.8,4476.1,0.91397]
[1756642252969,0.4672,4476.2,4476.1,1.09807]
[1756642254170,0.4672,4476.2,4476.1,0.696]
[1756642254566,0.4672,4476.7,4476.6,0.1841]
[1756642254873,0.4672,4476.7,4476.6,0.47]
[1756642255774,0.4672,4476.7,4476.6,0.87203]
[1756642255974,0.279,4477.4,4477.0,0.2859]
[1756642256177,0.1882,4477.2,4477.1,0.47]
[1756642256374,0.4672,4477.2,4477.1,0.47]